bitfinex/quotes_ETHUSD_20251125
["timestamp","ask_amount","ask_price","bid_price","bid_amount"]
[1764056880149,5.52472483,2919.6,2919.5,0.001]
[1764056880553,5.04262483,2919.6,2919.5,0.001]
[1764056880753,5.25962483,2919.6,2919.5,0.001]
[1764056881155,5.74172483,2919.6,2919.5,0.001]
[1764056881539,5.25962483,2919.6,2919.5,0.001]
[1764056882255,4.15272083,2919.6,2919.5,0.4587]
[1764056882427,4.15272083,2919.6,2919.5,0.9449]
[1764056882829,4.18674152,2919.6,2919.5,0.4587]
[1764056883153,4.15272083,2919.6,2919.5,0.4587]
[1764056883855,0.002,2919.6,2919.5,0.4587]
[1764056884059,0.72759411,2919.6,2919.5,0.001]
[1764056884431,0.72759411,2919.6,2919.5,0.4587]
[1764056885557,0.002,2919.6,2919.5,0.9449]
[1764056885960,0.72759411,2919.6,2919.5,0.9449]
[1764056886353,0.7616148,2919.6,2919.5,0.9449]
[1764056886655,0.72759411,2919.6,2919.5,0.4587]
[1764056887360,0.7616148,2919.6,2919.5,0.001]
[1764056887534,1.2460148,2919.6,2919.5,0.001]
[1764056888170,4.15272083,2919.6,2919.5,0.4587]
[1764056888668,8.11373217,2919.6,2919.5,0.4587]
[1764056888862,8.59813217,2919.6,2919.5,0.001]
[1764056889637,8.11373217,2919.6,2919.5,0.4587]
[1764056890065,8.11373217,2919.6,2919.5,0.9449]
[1764056890544,8.11373217,2919.6,2919.5,0.4587]
[1764056891270,8.59813217,2919.6,2919.5,0.001]
[1764056893349,8.11373217,2919.6,2919.5,0.4587]
[1764056893551,8.11373217,2919.6,2919.5,0.9449]
[1764056893780,3.42712672,2919.6,2919.5,0.9449]
[1764056894280,4.15272083,2919.6,2919.5,0.9449]
[1764056895880,4.15272083,2919.6,2919.5,0.4587]
[1764056895881,4.18674152,2919.6,2919.5,0.4587]
[1764056896285,4.18674152,2919.6,2919.5,0.001]
[1764056896777,4.67114152,2919.6,2919.5,0.001]
[1764056898185,4.15272083,2919.6,2919.5,0.4587]
[1764056900288,4.15272083,2919.6,2919.5,0.001]
[1764056900663,4.15272083,2919.6,2919.5,0.4991]
[1764056900876,5.05122483,2919.6,2919.5,0.001]
[1764056901087,5.56884552,2919.6,2919.5,0.001]
[1764056901564,4.55822483,2919.6,2919.5,0.001]
[1764056901985,5.08524552,2919.6,2919.5,0.001]
[1764056902173,5.05122483,2919.6,2919.5,0.001]
[1764056902373,4.55822483,2919.6,2919.5,0.4991]
[1764056902580,4.15272083,2919.6,2919.5,0.4991]
[1764056902806,0.405504,2919.3,2919.2,0.001]
[1764056902989,5.61673014,2919.3,2919.2,0.001]
[1764056903300,6.38650863,2919.3,2919.2,0.001]
[1764056904779,24.10529134,2919.3,2919.2,0.001]
[1764056904987,22.70704734,2919.3,2919.2,0.001]
[1764056905299,0.405504,2919.1,2918.9,0.001]
[1764056905504,0.653104,2919.0,2918.9,0.001]
[1764056905673,1.136704,2919.0,2918.9,0.001]
[1764056905876,1.631004,2919.0,2918.9,0.001]
[1764056906271,0.899804,2919.0,2918.9,0.001]
[1764056906876,5.05122887,2919.0,2918.9,0.001]
[1764056907069,5.54422887,2919.0,2918.9,0.001]
[1764056907311,6.06184956,2919.0,2918.9,0.001]
[1764056907615,6.02782887,2919.0,2918.9,0.001]
[1764056907783,5.54422887,2919.0,2918.9,0.001]
[1764056908303,6.06184956,2919.0,2918.9,0.001]
[1764056908493,18.31889456,2919.0,2918.9,0.001]
[1764056908684,16.05377587,2919.0,2918.9,0.001]
[1764056909403,16.11920887,2919.0,2918.9,0.001]
[1764056909614,15.78020887,2919.0,2918.9,0.001]
[1764056909802,5.76122887,2919.0,2918.9,0.001]
[1764056910191,8.24787087,2919.0,2918.9,0.001]
[1764056910405,10.33776887,2919.0,2918.9,0.001]
[1764056910602,9.24776887,2919.0,2918.9,0.001]
[1764056910895,8.92443187,2919.0,2918.9,0.001]
[1764056911091,5.26822887,2919.0,2918.9,0.4991]
[1764056911313,5.05122887,2919.0,2918.9,0.4991]
[1764056911897,5.05122887,2919.0,2918.9,0.001]
[1764056912118,5.54422887,2919.0,2918.9,0.001]
[1764056912294,5.26822887,2919.0,2918.9,0.001]
[1764056914220,5.05122887,2919.0,2918.9,0.001]
[1764056914386,5.54422887,2919.0,2918.9,0.001]
[1764056915920,6.02782887,2919.0,2918.9,0.001]
[1764056916522,6.06184956,2919.0,2918.9,0.001]
[1764056916818,6.02782887,2919.0,2918.9,0.001]
[1764056917624,6.06184956,2919.0,2918.9,0.001]
[1764056918039,5.05122887,2919.0,2918.9,0.4991]
[1764056918221,4.55692887,2919.0,2918.9,0.4991]
[1764056918605,10.48406111,2919.0,2918.9,0.4991]
[1764056919023,11.47616111,2919.0,2918.9,0.001]
[1764056919637,11.95976111,2919.0,2918.9,0.001]
[1764056920717,1.13109811,2918.9,2918.6,0.001]
[1764056920914,6.89792635,2918.7,2918.6,0.001]
[1764056921116,3.93436023,2918.7,2918.6,0.001]
[1764056921314,3.96838092,2918.7,2918.6,0.001]
[1764056921510,7.82105104,2918.7,2918.6,0.001]
[1764056921740,8.28133035,2918.7,2918.6,0.001]
[1764056922046,14.90387735,2918.7,2918.6,0.001]
[1764056922429,15.22319197,2918.7,2918.3,0.001]
[1764056922636,10.57226143,2918.4,2918.3,0.001]
[1764056922944,10.07926143,2918.4,2918.3,0.001]
[1764056923551,10.57226143,2918.4,2918.3,0.001]
[1764056924242,10.97776543,2918.4,2918.3,0.001]
[1764056924439,21.99421243,2918.4,2918.3,0.001]
[1764056924650,17.72234743,2918.4,2918.3,0.001]
[1764056925227,15.72034743,2918.4,2918.3,0.001]
[1764056925431,23.02182043,2918.4,2918.3,0.001]
[1764056925636,17.73454643,2918.4,2918.3,0.001]
[1764056926448,21.39968543,2918.4,2918.3,0.001]
[1764056926943,21.89398543,2918.4,2918.3,0.001]
[1764056927330,24.78571543,2918.4,2918.3,0.001]
[1764056927525,24.57171543,2918.4,2918.3,0.001]
[1764056928353,11.95566543,2918.4,2918.3,0.001]
[1764056928553,21.62046143,2918.4,2918.3,0.001]
[1764056929659,22.78066043,2918.4,2918.3,0.001]
[1764056930440,22.75725543,2918.4,2918.3,0.001]
[1764056931046,22.26777043,2918.4,2918.3,0.001]
[1764056931251,20.50197443,2918.4,2918.3,0.001]
[1764056931447,11.95566543,2918.4,2918.3,0.001]
[1764056931647,23.11672343,2918.4,2918.3,0.001]
[1764056931865,22.44287343,2918.4,2918.3,0.001]
[1764056932055,21.95108743,2918.4,2918.3,0.001]
[1764056932457,21.76838743,2918.4,2918.3,0.001]
[1764056932961,20.45516343,2918.4,2918.3,0.001]
[1764056933264,19.82182843,2918.4,2918.3,0.001]
[1764056933640,11.95566543,2918.4,2918.3,0.001]
[1764056933837,21.04982843,2918.4,2918.3,0.001]
[1764056934434,21.26682843,2918.4,2918.3,0.001]
[1764056934633,22.02442343,2918.4,2918.3,0.001]
[1764056934850,16.52666043,2918.4,2918.3,0.001]
[1764056935052,17.02406043,2918.4,2918.3,0.001]
[1764056935867,17.64750643,2918.4,2918.3,0.001]
[1764056936470,18.10740643,2918.4,2918.3,0.001]
[1764056936673,19.78800043,2918.4,2918.3,0.001]
[1764056937643,19.31959543,2918.4,2918.3,0.001]
[1764056937837,18.67459543,2918.4,2918.3,0.001]
[1764056938771,19.61497843,2918.4,2918.3,0.001]
[1764056939474,18.88757243,2918.4,2918.3,0.001]
[1764056939671,15.31627243,2918.4,2918.3,0.4846]
[1764056939853,14.45964343,2918.4,2918.3,0.4846]
[1764056940246,15.41184343,2918.4,2918.3,0.001]
[1764056940444,14.95504343,2918.4,2918.3,0.001]
[1764056940644,15.27454492,2918.4,2918.3,0.001]
[1764056940844,11.29856692,2918.4,2918.3,0.001]
[1764056941071,10.97906543,2918.4,2918.3,0.4846]
[1764056941277,13.72613543,2918.4,2918.3,0.4846]
[1764056941770,7.79900319,2918.4,2918.3,0.4846]
[1764056941975,0.1824,2919.4,2918.3,0.4846]
[1764056941976,3.42602691,2918.9,2918.3,0.9614]
[1764056942174,2.96356612,2918.6,2918.4,0.9604]
[1764056942373,2.96356612,2918.6,2918.5,0.4768]
[1764056942577,3.68916023,2918.6,2918.5,0.9604]
[1764056942780,0.72559411,2918.6,2918.5,1.0604]
[1764056943948,4.15189439,2918.6,2918.5,1.0604]
[1764056945192,4.15189439,2918.6,2918.5,0.9604]
[1764056945478,4.18591508,2918.6,2918.5,0.4836]
[1764056945772,4.15189439,2918.6,2918.5,0.4836]
[1764056946553,4.15189439,2918.6,2918.3,0.001]
[1764056946554,0.72559411,2918.5,2918.3,0.001]
[1764056946750,7.57819467,2918.6,2918.3,0.001]
[1764056946751,3.68916023,2918.4,2918.3,0.001]
[1764056947168,0.72559411,2918.4,2918.3,1.0614]
[1764056948372,4.15212919,2918.4,2918.3,1.0614]
[1764056950664,7.01029975,2918.4,2918.3,1.0614]
[1764056951485,0.72559411,2918.8,2918.3,0.9614]
[1764056951761,0.72559411,2918.8,2918.5,0.5836]
[1764056951985,0.1,2919.0,2918.7,0.4836]
[1764056952173,0.1,2919.0,2918.9,0.4836]
[1764056952376,0.1,2919.0,2918.9,1.0604]
[1764056952572,4.25142487,2919.0,2918.9,0.5836]
[1764056952779,7.14361612,2919.0,2918.9,0.4836]
[1764056952984,7.14361612,2919.0,2918.6,0.4768]
[1764056952985,0.72559411,2918.9,2918.6,0.5768]
[1764056953292,2.85817056,2918.7,2918.6,0.5768]
[1764056953694,2.85817056,2918.7,2918.6,1.0604]
[1764056953871,0.72559411,2918.9,2918.6,1.0604]
[1764056953872,0.72559411,2918.9,2918.7,0.1]
[1764056954194,0.72559411,2918.9,2918.8,0.4836]
[1764056954690,4.15154224,2918.9,2918.8,0.9604]
[1764056955262,8.10691106,2918.9,2918.5,0.4768]
[1764056955478,3.58376467,2918.6,2918.5,0.5768]
[1764056955910,3.58376467,2918.6,2918.5,1.0604]
[1764056956301,0.72559411,2918.8,2918.7,0.1]
[1764056956604,4.15165961,2918.8,2918.7,0.1]
[1764056956791,4.15165961,2918.8,2918.7,1.0604]
[1764056958504,0.72559411,2918.8,2918.7,1.0604]
[1764056959682,0.72559411,2918.8,2918.7,0.4836]
[1764056960294,0.7596148,2918.8,2918.7,0.4836]
[1764056961108,4.1856803,2918.8,2918.7,0.4836]
[1764056961815,4.15165961,2918.8,2918.7,0.4836]
[1764056962394,4.1856803,2918.8,2918.7,0.4836]
[1764056963013,4.1856803,2918.8,2918.7,0.4661]
[1764056963190,4.15165961,2918.8,2918.7,0.4661]
[1764056963522,7.6117458,2918.8,2918.4,0.4766]
[1764056963686,2.85817056,2918.6,2918.4,0.4766]
[1764056964090,0.72559411,2918.6,2918.5,0.4661]
[1764056964615,0.72559411,2918.6,2918.5,0.9427]
[1764056965418,8.03469467,2918.6,2918.3,0.001]
[1764056965603,2.85817056,2918.4,2918.3,0.001]
[1764056965917,4.15189439,2918.6,2918.5,0.5661]
[1764056966327,4.15189439,2918.6,2918.5,1.0427]
[1764056966817,3.42630028,2918.6,2918.5,1.0427]
[1764056967388,3.42630028,2918.6,2918.5,1.0437]
[1764056967588,3.42630028,2918.6,2918.5,0.5671]
[1764056968493,4.15189439,2918.6,2918.5,0.5671]
[1764056968903,4.15189439,2918.6,2918.5,0.4671]
[1764056969514,4.14144904,2918.6,2918.5,0.4671]
[1764056970314,4.14144904,2918.6,2918.5,0.001]
[1764056970519,5.51617373,2918.6,2918.5,0.001]
[1764056970720,0.405504,2918.2,2917.6,0.1]
[1764056970905,3.58376467,2917.7,2917.6,0.1]
[1764056971303,3.58376467,2917.7,2917.6,1.0427]
[1764056971504,0.72559411,2917.7,2917.6,1.0427]
[1764056972236,4.15295127,2917.7,2917.6,1.0427]
[1764056974799,0.72559411,2917.7,2917.6,1.0427]
[1764056975004,2.85817056,2918.2,2917.6,0.9427]
[1764056975299,0.72559411,2918.1,2918.0,0.1]
[1764056975722,0.72559411,2918.1,2918.0,1.0427]
[1764056976715,4.15248146,2918.1,2918.0,1.0427]
[1764056978035,2.85817056,2918.2,2918.0,1.0427]
[1764056978337,3.42667943,2918.3,2918.2,0.1]
[1764056978514,9.71157694,2918.3,2917.9,0.1]
[1764056978707,6.28484999,2918.3,2918.2,0.4661]
[1764056979334,6.28484999,2918.3,2917.9,0.1]
[1764056979335,0.72559411,2918.2,2917.9,0.1]
[1764056979540,2.85817056,2918.0,2917.9,0.1]
[1764056980041,2.85817056,2918.0,2917.9,0.5661]
[1764056980333,3.58376467,2918.2,2917.9,0.9427]
[1764056980517,3.58376467,2918.2,2918.1,0.4661]
[1764056980917,7.01053459,2918.2,2918.1,0.4661]
[1764056982046,10.89380451,2918.2,2918.0,0.1]
[1764056982544,0.7775,2918.1,2917.8,0.217]
[1764056982848,2.85817056,2917.9,2917.8,0.317]
[1764056983141,6.2852928,2917.9,2917.8,0.217]
[1764056983338,6.2852928,2917.9,2917.8,0.6831]
[1764056983508,6.2852928,2917.9,2917.8,0.7831]
[1764056983722,2.85817056,2917.9,2917.8,0.7831]
[1764056983912,6.2852928,2917.9,2917.8,0.7831]
[1764056984138,2.85817056,2917.9,2917.8,0.7831]
[1764056984308,6.2852928,2917.9,2917.8,0.7831]
[1764056985019,6.2852928,2917.9,2917.8,1.2597]
[1764056985412,6.2852928,2917.9,2917.8,0.7831]
[1764056986743,6.7417928,2917.9,2917.8,0.317]
[1764056987122,7.46738691,2917.9,2917.8,0.317]
[1764056987513,8.13048691,2917.9,2917.8,0.317]
[1764056987718,8.13048691,2917.9,2917.8,0.217]
[1764056988134,7.65178691,2917.9,2917.8,0.217]
[1764056988340,7.46738691,2917.9,2917.8,0.217]
[1764056989539,0.72559411,2917.8,2917.7,0.001]
[1764056989742,1.50589411,2917.8,2917.7,0.001]
[1764056990146,1.98249411,2917.8,2917.7,0.001]
[1764056991251,5.40973381,2917.8,2917.7,0.001]
[1764056991424,5.81523781,2917.8,2917.7,0.001]
[1764056992148,5.40973381,2917.8,2917.7,0.001]
[1764056993289,5.40973381,2917.8,2913.8,9.39170916]
[1764056993290,8.949919,2915.3,2913.8,9.39170916]
[1764056993441,8.949919,2915.3,2912.1,8.00582483]
[1764056993442,2.85817056,2913.9,2912.1,8.00582483]
[1764056993642,0.72559411,2912.5,2912.1,8.00582483]
[1764056993975,0.72559411,2912.3,2912.0,0.1]
[1764056994138,0.72559411,2912.3,2911.1,0.1871]
[1764056994139,4.80686385,2912.2,2911.5,0.1]
[1764056994335,1.46025163,2912.1,2911.8,0.1]
[1764056994573,0.72559411,2911.9,2911.8,0.1]
[1764056994882,0.95665752,2911.9,2911.1,0.1871]
[1764056995062,0.73465752,2911.8,2911.1,0.1871]
[1764056995276,4.34523603,2911.6,2911.5,0.1]
[1764056995438,0.73465752,2911.6,2911.5,0.1]
[1764056995643,1.64128817,2911.6,2911.5,0.5544]
[1764056995871,0.90663065,2912.1,2911.5,0.4544]
[1764056996085,5.06617277,2912.1,2912.0,0.5544]
[1764056996261,1.93747318,2912.1,2911.1,0.1871]
[1764056996466,5.36503875,2912.1,2912.0,0.5544]
[1764056996638,6.088337,2912.1,2912.0,0.5544]
[1764056996979,5.78696166,2912.1,2912.0,1.0196]
[1764056997278,6.088337,2912.1,2912.0,1.0196]
[1764056997643,0.72329825,2912.1,2912.0,1.0196]
[1764056997953,1.62545275,2912.1,2912.0,1.0196]
[1764056998148,0.72329825,2912.1,2912.0,1.0196]
[1764056998586,5.36274289,2912.1,2912.0,1.0196]
[1764056998876,5.05784837,2912.1,2912.0,1.0375]
[1764056999188,4.15724626,2912.1,2912.0,1.0375]
[1764056999485,0.72329825,2912.1,2912.0,1.1605]
[1764056999695,2.44974951,2913.1,2912.0,1.1605]
[1764056999696,0.8994358,2912.6,2912.5,0.1]
[1764056999977,1.62502991,2913.1,2912.8,0.1]
[1764057000191,1.62502991,2913.1,2905.1,0.1932]
[1764057000192,0.1557,2910.2,2905.1,0.1932]
[1764057000394,0.09999999,2908.3,2906.3,8.477378]
[1764057000614,0.04981688,2907.8,2906.4,4.351823]
[1764057000782,0.04981688,2908.5,2907.9,0.1]
[1764057000983,0.04981688,2908.7,2908.3,0.1]
[1764057001167,0.71840506,2908.6,2908.5,0.1]
[1764057001371,0.23,2908.6,2908.5,0.1]
[1764057001607,0.8994358,2909.2,2908.5,0.5831]
[1764057001778,4.64263907,2909.4,2908.6,0.23]
[1764057001779,0.71516294,2909.1,2908.6,0.23]
[1764057001982,0.72559411,2909.5,2908.9,0.1]
[1764057002205,0.72559411,2909.5,2908.5,0.4831]
[1764057002408,0.4831,2909.6,2909.1,0.1]
[1764057002707,0.4831,2909.6,2909.2,0.7131]
[1764057002881,0.4831,2909.6,2909.5,0.1]
[1764057003205,6.87190764,2910.4,2908.8,0.4831]
[1764057003405,0.4831,2910.4,2908.5,0.51748198]
[1764057003607,3.48554962,2910.6,2910.3,0.1]
[1764057003778,0.04981688,2910.5,2909.8,0.23]
[1764057004197,0.04981688,2910.2,2909.8,0.1]
[1764057004507,0.04981688,2910.0,2909.2,0.1]
[1764057004705,0.04981688,2909.8,2909.4,0.1]
[1764057004903,0.04981688,2910.0,2909.4,0.1]
[1764057005112,0.04981688,2910.0,2909.1,0.1]
[1764057005280,0.04981688,2910.0,2908.9,0.4831]
[1764057005281,0.72559411,2909.9,2909.2,0.23]
[1764057005471,0.04981688,2909.5,2909.2,0.23]
[1764057005679,0.04981688,2909.3,2909.2,0.5831]
[1764057005900,0.04981688,2909.3,2909.2,0.8131]
[1764057006102,0.04981688,2909.3,2908.4,0.1932]
[1764057006103,0.04981688,2909.3,2908.9,0.1]
[1764057006307,0.04981688,2909.3,2908.8,0.1]
[1764057006634,0.04981688,2908.9,2908.8,0.1]
[1764057006908,0.04981688,2908.9,2908.8,0.33]
[1764057007115,0.04981688,2909.2,2908.8,0.33]
[1764057007328,0.04981688,2908.9,2908.8,0.33]
[1764057007609,7.08646808,2908.9,2908.3,0.1]
[1764057007907,7.08646808,2908.9,2908.3,0.23]
[1764057007908,0.04981688,2908.4,2908.3,0.23]
[1764057008210,0.04981688,2908.4,2907.5,0.6763]
[1764057008511,0.04981688,2908.4,2907.9,0.1]
[1764057008812,0.04981688,2908.4,2907.6,0.23]
[1764057008813,0.04981688,2908.4,2908.2,0.1]
[1764057009008,0.04981688,2908.4,2907.9,0.1]
[1764057009225,0.04981688,2908.4,2908.2,0.23]
[1764057009379,4.16402893,2908.3,2908.2,0.23]
[1764057010186,5.76402893,2908.3,2908.2,0.23]
[1764057010407,5.76402893,2908.3,2907.5,0.1932]
[1764057010408,0.04981688,2907.9,2907.5,0.1932]
[1764057010613,5.0882517,2908.3,2907.8,0.1]
[1764057010908,5.0882517,2908.3,2908.0,0.1]
[1764057010909,0.04981688,2908.1,2908.0,0.1]
[1764057011120,1.6,2908.3,2908.2,0.2932]
[1764057011415,1.6,2908.3,2907.8,0.1]
[1764057011416,3.43878954,2908.0,2907.8,0.1]
[1764057011597,3.43855305,2908.2,2907.9,0.1]
[1764057011802,0.72559411,2908.1,2907.6,0.4831]
[1764057012001,3.43855305,2908.2,2907.6,0.4831]
[1764057012320,1.6,2908.3,2907.7,0.23]
[1764057012472,5.03843482,2908.3,2908.2,0.1]
[1764057012677,1.6,2908.3,2908.2,0.33]
[1764057013091,1.6,2908.3,2908.2,0.8131]
[1764057013296,1.6,2908.3,2908.2,0.33]
[1764057013702,1.6,2908.3,2908.2,0.7131]
[1764057013876,0.04981688,2908.7,2908.6,0.1]
[1764057014080,3.48789108,2908.7,2908.6,0.1]
[1764057014484,3.48789108,2908.7,2908.4,0.1]
[1764057014905,0.4831,2909.2,2908.7,0.1]
[1764057015089,0.4831,2909.2,2909.1,0.1]
[1764057015411,4.21278208,2909.2,2909.1,0.23]
[1764057015611,4.1629652,2909.2,2909.0,0.1]
[1764057015911,0.04981688,2909.1,2909.0,0.1]
[1764057016103,0.04981688,2909.1,2909.0,0.33]
[1764057017207,4.1629652,2909.2,2909.0,0.33]
[1764057018014,0.72559411,2909.1,2909.0,0.1]
[1764057018195,0.72559411,2909.1,2909.0,0.33]
[1764057018391,3.43715541,2909.4,2909.3,0.1]
[1764057018591,4.16274952,2909.4,2909.3,0.1]
[1764057019110,4.2125664,2909.4,2909.3,0.1]
[1764057019480,0.04981688,2909.6,2909.3,0.577]
[1764057019685,0.04981688,2909.9,2909.3,0.9601]
[1764057019888,3.48638479,2909.9,2909.7,0.1]
[1764057020115,0.04981688,2909.9,2909.8,0.229]
[1764057020316,0.04981688,2909.9,2909.8,0.329]
[1764057020485,3.4363653,2910.1,2909.8,0.329]
[1764057020486,0.72559411,2910.0,2909.8,0.229]
[1764057020684,1.2218358,2910.6,2910.3,0.1]
[1764057020685,3.43571772,2910.6,2910.3,0.1]
[1764057020888,0.04981688,2909.9,2908.4,1.13109811]
[1764057021096,0.04981688,2909.9,2909.8,0.1]
[1764057021323,0.04981688,2909.9,2909.8,0.329]
[1764057022200,0.77207207,2909.9,2909.8,0.329]
[1764057022396,0.72225519,2909.9,2909.8,0.329]
[1764057022697,0.8994358,2910.4,2909.8,1.2944]
[1764057022911,0.77218299,2910.3,2910.1,0.1]
[1764057023108,0.04981688,2910.3,2910.2,0.1]
[1764057023419,0.776723,2910.3,2910.2,0.1]
[1764057023632,0.72690612,2910.3,2910.2,1.2944]
[1764057023996,0.72690612,2910.3,2910.2,1.0654]
[1764057024197,0.776723,2910.3,2910.2,0.5939]
[1764057024523,0.04981688,2911.1,2910.2,1.1944]
[1764057024819,0.8994358,2911.4,2909.9,0.1835]
[1764057024820,0.04981688,2910.8,2910.3,0.329]
[1764057025122,0.04981688,2911.0,2910.7,0.1]
[1764057025324,3.4349005,2911.3,2911.1,0.1]
[1764057025490,4.21031149,2911.3,2911.2,0.229]
[1764057026519,0.04981688,2910.6,2910.5,0.1]
[1764057026899,0.72559411,2911.0,2910.7,0.1]
[1764057027225,0.72559411,2911.0,2910.5,0.229]
[1764057027517,0.72559411,2911.0,2910.9,0.1]
[1764057027900,0.95809411,2911.0,2909.9,0.655]
[1764057028097,0.04981688,2910.5,2910.4,0.1]
[1764057028300,1.62502991,2911.0,2910.6,0.1]
[1764057028511,1.62502991,2911.0,2910.0,0.7005]
[1764057028512,0.04981688,2910.9,2910.8,0.1]
[1764057028819,0.04981688,2910.9,2910.8,0.329]
[1764057029198,0.72559411,2911.0,2910.8,0.329]
[1764057029404,0.72559411,2911.0,2910.9,0.1]
[1764057029597,0.72559411,2911.0,2910.9,0.329]
[1764057029795,0.8994358,2911.4,2910.9,1.2944]
[1764057029796,0.04981688,2911.2,2910.9,1.2944]
[1764057029994,0.04981688,2911.2,2911.1,0.1]
[1764057030221,0.72559411,2911.5,2911.3,0.1]
[1764057030406,4.21018463,2911.4,2911.3,0.1]
[1764057030725,0.72559411,2911.4,2911.3,0.328]
[1764057031025,0.04981688,2911.5,2911.4,0.1]
[1764057031230,8.15083493,2911.7,2911.6,0.1]
[1764057031425,8.20065181,2911.7,2911.6,0.1]
[1764057031802,4.71639584,2911.7,2911.6,0.1]
[1764057032010,0.72559411,2911.7,2911.6,0.1]
[1764057032327,0.77541099,2911.7,2911.6,0.1]
[1764057032543,4.20983074,2911.7,2911.6,0.1]
[1764057032848,0.04981688,2911.7,2911.6,0.4939]
[1764057032997,0.04981688,2911.9,2911.6,0.4939]
[1764057033341,0.04981688,2911.9,2911.8,0.1]
[1764057033521,0.04981688,2911.9,2911.4,0.4715]
[1764057033700,0.04981688,2911.9,2911.2,3.43497743]
[1764057033701,0.04981688,2912.0,2911.5,0.6995]
[1764057033896,0.04981688,2912.0,2911.9,0.5939]
[1764057034100,4.15936264,2912.3,2911.9,0.9654]
[1764057034101,3.43376853,2912.3,2911.9,0.9654]
[1764057034359,0.72559411,2912.2,2912.1,0.1]
[1764057034520,0.04981688,2912.3,2912.2,0.76558443]
[1764057034718,0.04981688,2912.3,2912.2,1.46508443]
[1764057034942,0.04981688,2912.3,2912.2,0.99358443]
[1764057036248,0.04981688,2912.3,2912.2,0.228]
[1764057036401,0.04981688,2912.6,2912.2,8.16106018]
[1764057036734,0.04981688,2913.6,2913.5,0.1]
[1764057037048,0.04981688,2913.6,2913.5,0.328]
[1764057038036,0.04981688,2913.6,2913.5,1.2934]
[1764057038331,0.15901688,2913.9,2913.7,0.1]
[1764057038548,0.04981688,2913.9,2913.8,0.1]
[1764057039360,0.1813,2914.2,2914.1,0.1]
[1764057039568,0.04981688,2914.2,2914.1,0.1835]
[1764057039714,0.04981688,2914.2,2914.1,0.5115]
[1764057040116,0.04981688,2914.2,2914.1,0.328]
[1764057040300,0.04981688,2914.2,2914.1,0.1]
[1764057040502,0.04981688,2914.2,2913.4,0.1]
[1764057040503,0.04981688,2913.9,2913.4,0.1]
[1764057040729,0.04981688,2913.5,2913.4,0.1]
[1764057040914,0.04981688,2913.5,2913.1,0.2835]
[1764057041132,0.04981688,2913.5,2913.4,0.328]
[1764057041337,0.04981688,2913.5,2913.4,0.8219]
[1764057041505,3.43147347,2914.2,2913.6,0.1]
[1764057041506,0.04981688,2913.7,2913.6,0.1]
[1764057042214,0.04981688,2913.7,2913.6,0.328]
[1764057043054,0.860404,2914.3,2913.6,1.1934]
[1764057043055,0.04981688,2913.9,2913.6,1.1934]
[1764057043251,3.43135572,2914.3,2914.0,0.1]
[1764057043402,0.04981688,2914.1,2913.6,4.62557409]
[1764057043601,0.04981688,2914.1,2914.0,0.1]
[1764057043802,0.04981688,2913.8,2913.7,0.1]
[1764057044022,0.04981688,2913.8,2913.7,0.327]
[1764057044736,0.04981688,2914.1,2914.0,0.1]
[1764057045443,0.04981688,2914.1,2913.1,0.1835]
[1764057045444,0.04981688,2913.8,2913.6,0.1]
[1764057045664,0.04981688,2913.8,2913.7,0.227]
[1764057045945,0.04981688,2913.8,2913.7,0.327]
[1764057046238,0.04981688,2913.8,2913.7,0.8209]
[1764057046402,0.04981688,2913.8,2913.7,0.5939]
[1764057046604,0.04981688,2913.8,2913.7,0.1]
[1764057046834,0.04981688,2914.1,2914.0,0.1]
[1764057047137,0.04981688,2914.1,2913.5,3.4322716]
[1764057047336,3.43124257,2914.4,2913.1,3.61615357]
[1764057047337,0.04981688,2913.8,2913.6,0.227]
[1764057047633,0.04981688,2913.8,2913.7,0.327]
[1764057048022,0.04981688,2913.8,2913.7,0.1]
[1764057048208,0.04981688,2913.8,2913.7,0.327]
[1764057049002,0.04981688,2913.8,2913.7,4.72446232]
[1764057049650,0.04981688,2913.8,2913.7,1.2924]
[1764057049831,0.04981688,2914.1,2913.7,4.72446232]
[1764057050032,0.04981688,2914.1,2914.0,0.1]
[1764057050551,0.22011688,2914.1,2914.0,0.327]
[1764057050868,3.6517081,2914.1,2914.0,0.327]
[1764057051041,0.04981688,2913.8,2913.7,0.1]
[1764057051453,0.20721688,2913.8,2913.7,0.327]
[1764057052250,0.04981688,2913.6,2913.5,0.1]
[1764057052423,0.04981688,2913.6,2913.5,0.327]
[1764057053626,0.04981688,2913.6,2913.5,0.1]
[1764057054339,0.21051688,2913.6,2913.5,0.227]
[1764057054520,0.21051688,2913.6,2913.5,0.327]
[1764057054722,0.04981688,2913.6,2913.5,0.327]
[1764057056455,0.04981688,2913.6,2913.1,0.1]
[1764057056456,0.04981688,2913.2,2913.1,0.1]
[1764057056658,0.04981688,2913.2,2913.1,0.326]
[1764057057234,0.04981688,2913.2,2913.1,0.1]
[1764057057434,0.04981688,2913.2,2913.1,0.326]
[1764057057661,0.04981688,2913.5,2913.1,1.202]
[1764057057867,0.03402069,2914.7,2914.1,0.1802]
[1764057058063,0.04981688,2914.4,2914.3,0.1]
[1764057058265,0.04981688,2914.5,2914.4,0.1]
[1764057058565,4.48940173,2915.4,2914.2,0.226]
[1764057058566,0.04981688,2915.1,2914.3,0.976]
[1764057058740,0.04981688,2915.1,2915.0,0.1]
[1764057058947,3.62907809,2915.9,2915.0,1.202]
[1764057059140,3.62907809,2915.9,2915.7,0.1]
[1764057059348,0.24931688,2915.9,2915.8,0.226]
[1764057059775,0.04981688,2915.3,2915.1,4.09330575]
[1764057060066,0.04981688,2915.3,2915.2,0.7087]
[1764057060233,0.1813,2916.4,2915.7,0.1]